fUST/lending_fUST_20260129
["ID","MTS","AMOUNT","RATE_DAILY","PERIOD"]
[403916596,1769674757126,-3000.0,0.0005103,85]
[403916597,1769674757163,-3000.0,0.0005104,85]
[403916598,1769674757196,-500.0,0.00051045,60]
[403916599,1769674757234,-3000.0,0.0005105,85]
[403916600,1769674757268,-3000.0,0.0005106,85]
[403916601,1769674757306,-5716.235258,0.0005107,85]
[403916602,1769674757338,-212.0,0.0005119,30]
[403916603,1769674757372,-10000.0,0.000512,120]
[403916604,1769674757406,-3000.0,0.000512,120]
[403916605,1769674757444,-3000.0,0.000512,120]
[403916606,1769674757479,-5000.0,0.000512,120]
[403916607,1769674757514,-5000.0,0.000512,120]
[403916608,1769674757549,-5000.0,0.000512,120]
[403916609,1769674757584,-217.0,0.000512,120]
[403916610,1769674757618,-2319.29,0.00051232,120]
[403916611,1769674757652,-200.0,0.00051312,120]
[403916612,1769674757686,-200.0,0.00051312,120]
[403916613,1769674757721,-200.0,0.00051312,120]
[403916614,1769674757754,-2319113.44156916,0.00051337,120]
[403916615,1769674757788,-403.5607033,0.00051495,120]
[403916616,1769674757823,-3160.33190291,0.000515,120]
[403916617,1769674757858,-217.0,0.000516,120]
[403916618,1769674757894,-11014.10908656,0.0005169,120]
[403916619,1769674757930,-2000.0,0.000519,120]
[403916620,1769674757964,-2694.96,0.000519,120]
[403916621,1769674757998,-1000.0,0.00052,120]
[403916622,1769674758035,-100000.0,0.00052,120]
[403916623,1769674758070,-1000.0,0.00052,120]
[403916624,1769674758106,-2000.0,0.00052,120]
[403916625,1769674758143,-200.0,0.00052,120]
[403916626,1769674758178,-9989.57937735,0.00052,120]
[403916627,1769674758214,-217.0,0.00052,120]
[403916628,1769674758251,-898.8483,0.00052,60]
[403916629,1769674758285,-6000.0,0.00052,30]
[403916630,1769674758321,-6365.92246698,0.00052,120]
[403916631,1769674758356,-217.17,0.00052292,30]
[403916632,1769674758393,-2319.29,0.00052328,120]
[403916633,1769674758429,-217.0,0.000524,120]
[403916634,1769674758464,-212.0,0.0005249,30]
[403916635,1769674758501,-1263.9948892,0.000525,120]
[403916636,1769674758534,-500.0,0.00052545,60]
[403916637,1769674758569,-217.0,0.000528,120]
[403916638,1769674758603,-2000.0,0.000529,120]
[403916639,1769674758637,-1000.0,0.00052999,120]
[403916640,1769674758671,-3070.59915484,0.00053,120]
[403916641,1769674758706,-1000.0,0.00053,120]
[403916642,1769674758741,-2000.0,0.00053,120]
[403916643,1769674758775,-600.0,0.00053,120]
[403916644,1769674758810,-1000.0,0.00053,120]
[403916645,1769674758846,-1000.0,0.00053,60]
[403916646,1769674758879,-10000.0,0.00053,120]
[403916647,1769674758912,-2150.0,0.00053074,120]
[403916648,1769674758947,-1369.0,0.00053074,120]
[403916649,1769674758982,-217.0,0.000532,120]
[403916650,1769674759018,-2319.29,0.00053424,120]
[403916651,1769674759051,-500.0,0.00053445,60]
[403916652,1769674759085,-217.0,0.000536,120]
[403916653,1769674759119,-212.0,0.0005379,30]
[403916654,1769674759152,-8727.6733381,0.0005388,30]
[403916655,1769674759187,-2000.0,0.000539,120]
[403916656,1769674759226,-14464.5,0.00053932,30]
[403916657,1769674759261,-1000.0,0.00053999,120]
[403916658,1769674759295,-688.71261232,0.00054,120]
[403916659,1769674759329,-1000.0,0.00054,120]
[403916660,1769674759364,-2000.0,0.00054,120]
[403916661,1769674759399,-200.0,0.00054,120]
[403916662,1769674759434,-150.0,0.00054,120]
[403916663,1769674759469,-217.0,0.00054,120]
[403916664,1769674761223,2066.36,0.00037174,120]
[403916665,1769674761612,4132.71,0.00041157,120]
[403916666,1769674761967,6199.07,0.00045139,120]
[403916667,1769674762352,8265.43,0.00049122,120]
[403916668,1769674762706,10331.79,0.00053105,120]
[403916669,1769674763663,5000.0,0.00054247,30]
[403916671,1769675100547,843.0,0.0003461,120]
[403916676,1769675221740,-169.0028197,0.00011507,2]
[403916677,1769675221772,-2600.26191982,0.00011941,2]
[403916678,1769675221808,-159.216,0.00011956,2]
[403916679,1769675221839,-1733.28241896,0.000121,2]
[403916680,1769675221935,-676.48368304,0.00012197,2]
[403916681,1769675227634,-1107.88168652,0.00011941,2]
[403916682,1769675227668,-523.51631696,0.00012197,2]
[403916683,1769675227701,-300.0,0.00012197,2]
[403916684,1769675227733,-300.0,0.00012198,2]
[403916685,1769675227765,-300.0,0.00012198,2]
[403916686,1769675227800,-300.0,0.00012198,2]
[403916687,1769675227833,-592.0,0.00012199,2]
[403916688,1769675227865,-219.03687165,0.00012199,2]
[403916689,1769675227897,-500.6381265,0.00012199,2]
[403916690,1769675227930,-500.0,0.00012199,2]
[403916691,1769675227961,-342.34737833,0.00012199,2]
[403916692,1769675228160,-29.16924008,0.00012199,2]
[403916693,1769675233770,-234.13854722,0.00012199,2]
[403916694,1769675233806,-300.0,0.00012199,2]
[403916695,1769675233866,-8931.73290556,0.000122,2]
[403916696,1769675274236,725.73,0.00034708,120]
[403916711,1769675426994,-300.0,0.00012098,2]
[403916712,1769675427030,-591.0,0.00012098,2]
[403916713,1769675427064,-1200.0,0.00012098,2]
[403916714,1769675427097,-1559.9541771,0.00012099,2]
[403916715,1769675427132,-244.82346566,0.00012099,2]
[403916716,1769675427167,-500.0,0.00012099,2]
[403916717,1769675427203,-500.0,0.00012099,2]
[403916718,1769675427351,-208.45471448,0.00012099,2]
[403916719,1769675427665,-291.54528552,0.00012099,2]
[403916720,1769675427699,-500.0,0.00012099,2]
[403916721,1769675427732,-289.03039024,0.00012099,2]
[403916722,1769675427767,-500.0,0.00012099,2]
[403916723,1769675427802,-534.51407555,0.00012099,2]
[403916724,1769675427839,-300.0,0.00012099,2]
[403916725,1769675428198,-8.45471448,0.000121,2]
[403916726,1769675428215,-5169.83049738,0.000121,2]
[403916727,1769675430304,290.28256812,0.00034703,120]
[403916728,1769675430700,290.28256812,0.00034703,120]
[403916729,1769675431259,290.28256812,0.00034703,120]
[403916730,1769675431656,200.0,0.000294,120]
[403916731,1769675431674,-10000.01,0.000121,2]
[403916735,1769675431714,290.28256812,0.00034703,120]
[403916743,1769675432103,290.28256812,0.00034703,120]
[403916744,1769675432252,-97063.85912275,0.000121,2]
[403916745,1769675432264,-963.72371194,0.000121,2]
[403916746,1769675432276,-1652.00046719,0.000121,2]
[403916761,1769675432571,290.28256812,0.00034703,120]
[403916813,1769675433051,290.28256812,0.00034703,120]
[403916888,1769675433759,290.28256812,0.00034703,120]
[403916977,1769675434605,-10000.01,0.000121,2]
[403917014,1769675434956,1391.87724,0.000294,120]
[403917151,1769675438174,-307.8364998,0.000121,2]
[403917152,1769675438202,-470557.49448082,0.000121,2]
[403917153,1769675438213,-5088.52379001,0.000121,2]
[403917154,1769675438288,-757.61696366,0.000121,2]
[403917155,1769675438300,-1598430.63975197,0.000121,2]
[403917156,1769675438309,-151.0,0.000121,2]
[403917157,1769675438319,-151.0,0.000122,2]
[403917158,1769675438328,-151.0,0.000122,2]
[403917159,1769675438338,-151.0,0.000122,2]
[403917160,1769675438348,-151.0,0.000122,2]
[403917161,1769675438357,-151.0,0.000122,2]
[403917162,1769675438367,-151.0,0.000122,2]
[403917164,1769675438377,-151.0,0.000122,2]
[403917166,1769675438386,-151.0,0.000122,2]
[403917167,1769675438395,-151.0,0.000122,2]
[403917168,1769675438405,-151.0,0.000122,2]
[403917169,1769675438414,-151.0,0.000122,2]
[403917170,1769675438423,-2351.94,0.00012329,2]
[403917171,1769675438433,-2689.22,0.00012329,2]
[403917172,1769675438442,-2241.01,0.00012329,2]
[403917173,1769675438451,-1867.51,0.00012329,2]
[403917174,1769675438461,-1556.26,0.00012329,2]
[403917175,1769675438471,-1296.88,0.00012329,2]
[403917176,1769675438481,-1080.74,0.00012329,2]
[403917177,1769675438491,-600.0,0.00012334,2]
[403917178,1769675438500,-306.0,0.000124,2]
[403917179,1769675438509,-4417.989418,0.00012508,2]
[403917180,1769675438520,-300.0,0.00012545,2]
[403917181,1769675438530,-300.0,0.00012545,2]
[403917182,1769675438539,-300.0,0.00012545,2]
[403917183,1769675438549,-300.0,0.00012545,2]
[403917184,1769675438559,-300.0,0.00012545,2]
[403917185,1769675438568,-300.0,0.00012545,2]
[403917186,1769675438578,-300.0,0.00012545,2]
[403917187,1769675438587,-300.0,0.00012545,2]
[403917188,1769675438596,-300.0,0.00012545,2]
[403917189,1769675438606,-300.0,0.00012545,2]
[403917190,1769675438616,-300.0,0.00012545,2]
[403917191,1769675438625,-300.0,0.00012545,2]
[403917192,1769675438635,-300.0,0.00012545,2]
[403917193,1769675438643,-300.0,0.00012545,2]
[403917194,1769675438652,-300.0,0.00012545,2]
[403917195,1769675438662,-268.50220491,0.0001257,2]
[403917196,1769675438671,-217.43292674,0.00012614,2]
[403917197,1769675438681,-721.8406793,0.00012761,2]
[403917198,1769675438690,-993.33073525,0.000129,2]
[403917199,1769675438699,-1819.35,0.0001303,2]
[403917200,1769675438710,-500.0,0.00013035,2]
[403917201,1769675438719,-4417.989418,0.00013035,2]
[403917202,1769675438728,-13561.96726278,0.00013103,2]
[403917203,1769675438737,-534.1464331,0.00013171,2]
[403917204,1769675438747,-461.63,0.000132,2]
[403917205,1769675438756,-319.0,0.00013254,2]
[403917206,1769675438766,-689.8518212,0.00013257,2]
[403917207,1769675438776,-500.0,0.00013273,2]
[403917208,1769675438786,-500.0,0.00013273,2]
[403917209,1769675438795,-501.84700796,0.00013273,2]
[403917210,1769675438805,-501.0352963,0.00013273,2]
[403917211,1769675438815,-500.0,0.00013273,2]
[403917212,1769675438824,-500.0,0.00013273,2]
[403917213,1769675438838,-549.00671497,0.00013273,2]
[403917214,1769675438848,-500.0,0.00013273,2]
[403917215,1769675438858,-500.0,0.00013273,2]
[403917216,1769675438867,-500.0,0.00013273,2]
[403917217,1769675438879,-502.30333023,0.00013273,2]
[403917218,1769675438888,-151.83186163,0.00013273,2]
[403917219,1769675438898,-502.84198919,0.00013273,2]
[403917220,1769675438909,-500.0,0.00013273,2]
[403917221,1769675438918,-161.6192891,0.00013273,2]
[403917222,1769675438928,-502.121625,0.00013273,2]
[403917223,1769675438937,-430.04295978,0.00013273,2]
[403917224,1769675438947,-316.86005023,0.00013273,2]
[403917225,1769675438956,-500.0,0.00013273,2]
[403917226,1769675438966,-467.88085313,0.00013273,2]
[403917227,1769675438976,-500.0,0.00013273,2]
[403917229,1769675438986,-504.66671492,0.00013273,2]
[403917231,1769675438996,-501.31853517,0.00013273,2]
[403917233,1769675439006,-500.0,0.00013273,2]
[403917234,1769675439015,-500.0,0.00013273,2]
[403917235,1769675439025,-500.0,0.00013273,2]
[403917236,1769675439035,-500.0,0.00013273,2]
[403917237,1769675439045,-536.76797533,0.00013273,2]
[403917238,1769675439055,-162.28812704,0.00013273,2]
[403917239,1769675439064,-500.0,0.00013273,2]
[403917240,1769675439074,-500.0,0.00013273,2]
[403917241,1769675439083,-398.37330193,0.00013273,2]
[403917242,1769675439093,-634.23164184,0.00013273,2]
[403917243,1769675439102,-167.9297864,0.00013273,2]
[403917244,1769675439113,-500.0,0.00013273,2]
[403917245,1769675439123,-500.0,0.00013273,2]
[403917246,1769675439133,-500.0,0.00013273,2]
[403917247,1769675439143,-500.92401321,0.00013273,2]
[403917248,1769675439153,-500.0,0.00013273,2]
[403917249,1769675439163,-500.0,0.00013273,2]
[403917250,1769675439173,-500.0,0.00013273,2]
[403917251,1769675439183,-500.0,0.00013273,2]
[403917252,1769675439192,-500.0,0.00013273,2]
[403917253,1769675439202,-500.0,0.00013273,2]
[403917254,1769675439212,-420.0,0.0001328,2]
[403917255,1769675439221,-1680.0,0.00013308,2]
[403917256,1769675439231,-500.0,0.00013309,2]
[403917257,1769675439241,-390.0,0.00013309,2]
[403917258,1769675439250,-4727.70481349,0.00013479,2]
[403917259,1769675439260,-4417.989418,0.00013561,2]
[403917260,1769675439271,-720.0,0.00013567,2]
[403917261,1769675439282,-500.0,0.00013583,2]
[403917262,1769675439293,-500.0,0.00013698,2]
[403917263,1769675439302,-501.08252393,0.00013698,2]
[403917265,1769675439312,-525.32488563,0.00013698,2]
[403917267,1769675439321,-500.0,0.00013698,2]
[403917269,1769675439330,-533.70108919,0.00013698,2]
[403917271,1769675439339,-500.0,0.00013698,2]
[403917273,1769675439349,-500.0,0.00013698,2]
[403917275,1769675439357,-500.0,0.00013698,2]
[403917277,1769675439366,-500.0,0.00013698,2]
[403917279,1769675439376,-500.0,0.00013698,2]
[403917281,1769675439385,-500.0,0.00013698,2]
[403917283,1769675439394,-500.0,0.00013698,2]
[403917285,1769675439403,-518.94139039,0.00013698,2]
[403917287,1769675439412,-500.0,0.00013698,2]
[403917289,1769675439422,-500.0,0.00013698,2]
[403917291,1769675439431,-500.0,0.00013698,2]
[403917293,1769675439440,-500.0,0.00013698,2]
[403917294,1769675439450,-500.0,0.00013698,2]
[403917295,1769675439459,-420.85,0.00013698,2]
[403917296,1769675439468,-500.0,0.00013698,2]
[403917297,1769675439478,-500.0,0.00013698,2]
[403917298,1769675439487,-500.0,0.00013698,2]
[403917299,1769675439496,-500.0,0.00013698,2]
[403917300,1769675439506,-500.0,0.00013698,2]
[403917301,1769675439516,-500.0,0.00013698,2]
[403917302,1769675439526,-500.0,0.00013698,2]
[403917303,1769675439535,-500.0,0.00013698,2]
[403917304,1769675439544,-500.0,0.00013698,2]
[403917305,1769675439553,-500.0,0.00013698,2]
[403917307,1769675439563,-500.0,0.00013698,2]
[403917308,1769675439573,-500.0,0.00013698,2]
[403917310,1769675439582,-586.53134031,0.00013698,2]
[403917312,1769675439592,-500.0,0.00013698,2]
[403917313,1769675439601,-500.0,0.00013698,2]
[403917314,1769675439611,-500.0,0.00013698,2]
[403917315,1769675439620,-500.0,0.00013698,2]
[403917316,1769675439629,-500.0,0.00013698,2]
[403917317,1769675439639,-374.18186284,0.00013698,2]
[403917318,1769675439648,-500.0,0.00013698,2]
[403917319,1769675439658,-610.45891108,0.00013698,2]
[403917320,1769675439667,-500.0,0.00013698,2]
[403917321,1769675439676,-500.0,0.00013698,2]
[403917322,1769675439686,-500.0,0.00013698,2]
[403917323,1769675439696,-500.0,0.00013698,2]
[403917324,1769675439705,-500.0,0.00013698,2]
[403917325,1769675439716,-500.0,0.00013698,2]
[403917326,1769675439726,-500.0,0.00013698,2]
[403917327,1769675439735,-583.95253597,0.00013698,2]
[403917328,1769675439745,-500.0,0.00013698,2]
[403917329,1769675439754,-500.0,0.00013698,2]
[403917330,1769675439764,-500.0,0.00013698,2]
[403917331,1769675439774,-500.0,0.00013698,2]
[403917332,1769675439784,-500.0,0.00013698,2]
[403917333,1769675439794,-500.0,0.00013698,2]
[403917334,1769675439803,-500.0,0.00013698,2]
[403917335,1769675439812,-544.76043412,0.00013698,2]
[403917336,1769675439823,-530.03606409,0.00013698,2]
[403917337,1769675439833,-1325.61,0.00013698,2]
[403917338,1769675439845,-1325.61,0.00013698,2]
[403917339,1769675439854,-1325.61,0.00013698,2]
[403917340,1769675439864,-1325.61,0.00013698,2]
[403917341,1769675439875,-1325.61,0.00013698,2]
[403917342,1769675439885,-1325.61,0.00013698,2]
[403917343,1769675439894,-1325.61,0.00013698,2]
[403917344,1769675439904,-1325.61,0.00013698,2]
[403917345,1769675439915,-1325.61,0.00013698,2]
[403917346,1769675439925,-1325.61,0.00013698,2]
[403917347,1769675439934,-1325.61,0.00013698,2]
[403917348,1769675439944,-1325.61,0.00013698,2]
[403917349,1769675439953,-1325.61,0.00013698,2]
[403917350,1769675439962,-1325.61,0.00013698,2]
[403917351,1769675439971,-1325.61,0.00013698,2]
[403917352,1769675439980,-1325.61,0.00013698,2]
[403917353,1769675439990,-1325.61,0.00013698,2]
[403917354,1769675440000,-1325.61,0.00013698,2]
[403917355,1769675440010,-1325.61,0.00013698,2]
[403917356,1769675440021,-1325.61,0.00013698,2]
[403917357,1769675440031,-1325.61,0.00013698,2]
[403917358,1769675440041,-1325.61,0.00013698,2]
[403917359,1769675440051,-1325.61,0.00013698,2]
[403917360,1769675440061,-1325.75855032,0.00013698,2]
[403917361,1769675440071,-1875.13,0.00013698,2]
[403917362,1769675440081,-1875.13,0.00013698,2]
[403917363,1769675440090,-1875.13,0.00013698,2]
[403917364,1769675440099,-1875.13,0.00013698,2]
[403917365,1769675440109,-1875.13,0.00013698,2]
[403917366,1769675440119,-1875.13,0.00013698,2]
[403917367,1769675440129,-1875.13,0.00013698,2]
[403917368,1769675440138,-1875.13,0.00013698,2]
[403917369,1769675440148,-1875.13,0.00013698,2]
[403917370,1769675440158,-1875.13,0.00013698,2]
[403917371,1769675440168,-1875.13,0.00013698,2]
[403917372,1769675440177,-1875.13,0.00013698,2]
[403917373,1769675440186,-1875.13,0.00013698,2]
[403917374,1769675440196,-1875.13,0.00013698,2]
[403917375,1769675440206,-1875.13,0.00013698,2]
[403917376,1769675440215,-1875.13,0.00013698,2]
[403917377,1769675440225,-1875.13,0.00013698,2]
[403917378,1769675440235,-1875.13,0.00013698,2]
[403917379,1769675440244,-1875.13,0.00013698,2]
[403917380,1769675440254,-1875.13,0.00013698,2]
[403917381,1769675440263,-1875.13,0.00013698,2]
[403917382,1769675440272,-1875.13,0.00013698,2]
[403917383,1769675440282,-1875.13,0.00013698,2]
[403917384,1769675440291,-1875.15816564,0.00013698,2]
[403917385,1769675440304,-996.912427,0.00013699,2]
[403917386,1769675440313,-1000.0,0.00013699,2]
[403917387,1769675440323,-500.0,0.00013699,2]
[403917388,1769675440332,-314.792435,0.00013699,2]
[403917389,1769675440342,-501.76365168,0.00013699,2]
[403917390,1769675440352,-500.0,0.00013699,2]
[403917392,1769675440361,-500.0,0.00013699,2]
[403917406,1769675440489,-500.75803963,0.00013699,2]
[403917408,1769675440501,-500.0,0.00013699,2]
[403917410,1769675440510,-500.0,0.00013699,2]
[403917412,1769675440520,-501.60095283,0.00013699,2]
[403917414,1769675440530,-500.84679195,0.00013699,2]
[403917416,1769675440539,-500.0,0.00013699,2]
[403917418,1769675440549,-500.0,0.00013699,2]
[403917420,1769675440558,-500.0,0.00013699,2]
[403917422,1769675440567,-507.77467851,0.00013699,2]
[403917424,1769675440582,-500.0,0.00013699,2]
[403917426,1769675440591,-500.0,0.00013699,2]
[403917428,1769675440600,-500.0,0.00013699,2]
[403917430,1769675440609,-502.71899874,0.00013699,2]
[403917432,1769675440618,-500.0,0.00013699,2]
[403917434,1769675440627,-500.0,0.00013699,2]
[403917436,1769675440636,-500.0,0.00013699,2]
[403917438,1769675440646,-500.0,0.00013699,2]
[403917440,1769675440655,-500.0,0.00013699,2]
[403917442,1769675440665,-500.0,0.00013699,2]
[403917444,1769675440674,-576.23552475,0.00013699,2]
[403917446,1769675440683,-619.89815571,0.00013743,2]
[403917448,1769675440692,-501.40141245,0.00013821,2]
[403917450,1769675440702,-1017.09664357,0.00013821,2]
[403917452,1769675440711,-506.38016949,0.00013821,2]
[403917454,1769675440720,-196.99444629,0.00013821,2]
[403917456,1769675440729,-1000.0,0.00013821,2]
[403917458,1769675440738,-1000.0,0.00013821,2]
[403917460,1769675440747,-1000.0,0.00013821,2]
[403917462,1769675440756,-1000.0,0.00013821,2]
[403917464,1769675440766,-1000.0,0.00013821,2]
[403917466,1769675440775,-1000.0,0.00013821,2]
[403917468,1769675440784,-1000.0,0.00013821,2]
[403917470,1769675440793,-1000.0,0.00013821,2]
[403917472,1769675440802,-897.62397769,0.00013821,2]
[403917474,1769675440811,-1000.0,0.00013821,2]
[403917476,1769675440820,-175.05414771,0.00013821,2]
[403917478,1769675440830,-1007.51247725,0.00013821,2]
[403917480,1769675440844,-1000.0,0.00013821,2]
[403917482,1769675440853,-1000.0,0.00013821,2]
[403917484,1769675440862,-1107.3138929,0.00013821,2]
[403917486,1769675440872,-1002.6154559,0.00013821,2]
[403917488,1769675440882,-1000.0,0.00013821,2]
[403917490,1769675440891,-1000.0,0.00013821,2]
[403917492,1769675440900,-500.0,0.00013857,2]
[403917494,1769675440913,-2150.0,0.00014074,2]
[403917496,1769675440922,-1369.0,0.00014074,2]
[403917498,1769675440931,-630.0,0.00014074,2]
[403917500,1769675440941,-716.0,0.00014074,2]
[403917502,1769675440950,-180.914,0.00014074,2]
[403917504,1769675440960,-418.0,0.00014074,2]
[403917506,1769675440975,-418.0,0.00014074,2]
[403917508,1769675440984,-4417.989418,0.00014088,2]
[403917510,1769675440993,-500.0,0.00014131,2]
[403917513,1769675441003,-1275.62,0.00014149,2]
[403917515,1769675441014,-203.757,0.00014178,2]
[403917516,1769675441023,-150.331,0.00014178,2]
[403917518,1769675441032,-150.318,0.00014178,2]
[403917520,1769675441042,-160.9968606,0.00014247,2]
[403917522,1769675441051,-1000.0,0.00014247,2]
[403917524,1769675441060,-504.15902707,0.00014247,2]
[403917527,1769675441070,-1000.0,0.00014247,2]
[403917529,1769675441079,-500.0,0.00014247,2]
[403917530,1769675441088,-1000.0,0.00014247,2]
[403917532,1769675441097,-592.85387235,0.00014247,2]
[403917535,1769675441107,-1000.0,0.00014247,2]
[403917536,1769675441116,-1000.0,0.00014247,2]
[403917539,1769675441127,-1102.21614882,0.00014247,2]
[403917541,1769675441137,-1000.0,0.00014247,2]
[403917543,1769675441147,-1134.23032778,0.00014247,2]
[403917545,1769675441156,-1000.0,0.00014247,2]
[403917547,1769675441166,-1000.0,0.00014247,2]
[403917549,1769675441175,-268.34650551,0.00014368,2]
[403917551,1769675441186,-1500.0,0.00014368,2]
[403917553,1769675441195,-969.61936393,0.00014368,2]
[403917555,1769675441204,-1500.0,0.00014368,2]
[403917557,1769675441214,-1000.0,0.00014368,2]
[403917559,1769675441223,-1500.0,0.00014368,2]
[403917561,1769675441232,-1059.00085584,0.00014368,2]
[403917563,1769675441242,-1174.31678051,0.00014368,2]
[403917565,1769675441251,-1500.0,0.00014368,2]
[403917567,1769675441261,-1006.97266189,0.00014368,2]
[403917569,1769675441270,-1500.0,0.00014368,2]
[403917571,1769675441280,-1500.0,0.00014368,2]
[403917573,1769675441289,-1500.0,0.00014368,2]
[403917575,1769675441298,-500.0,0.00014405,2]
[403917577,1769675441307,-534.1464331,0.0001443,2]
[403917579,1769675441317,-150.61,0.00014528,2]
[403917581,1769675441326,-587.0,0.00014577,2]
[403917583,1769675441335,-1559.95417701,0.000146,2]
[403917585,1769675441344,-4417.989418,0.00014615,2]
[403917587,1769675441353,-1855.0,0.00014639,2]
[403917589,1769675441362,-500.0,0.00014679,2]
[403917591,1769675441371,-336.07837269,0.00014795,2]
[403917593,1769675441380,-1500.0,0.00014795,2]
[403917595,1769675441390,-822.54748319,0.00014795,2]
[403917597,1769675441399,-565.0903288,0.00014795,2]
[403917599,1769675441409,-1500.0,0.00014795,2]
[403917601,1769675441418,-1500.0,0.00014795,2]
[403917603,1769675441427,-168.0,0.00014882,2]
[403917605,1769675441436,-1000.0,0.00014916,2]
[403917607,1769675441445,-1500.0,0.00014916,2]
[403917609,1769675441455,-1000.0,0.00014916,2]
[403917611,1769675441464,-2001.01080598,0.00014916,2]
[403917613,1769675441473,-2000.0,0.00014916,2]
[403917615,1769675441482,-1000.0,0.00014916,2]
[403917617,1769675441492,-2000.0,0.00014916,2]
[403917619,1769675441501,-864.0,0.00014924,2]
[403917621,1769675441510,-168.0,0.00015054,2]
[403917623,1769675441520,-168.96156,0.00015068,2]
[403917625,1769675441529,-4417.989418,0.00015141,2]
[403917627,1769675441538,-168.0,0.00015173,2]
[403917628,1769675441547,-993.33073525,0.0001523,2]
[403917630,1769675441557,-168.0,0.00015286,2]
[403917632,1769675441566,-168.0,0.00015309,2]
[403917635,1769675441576,-168.0,0.0001534,2]
[403917637,1769675441585,-8559.45,0.00015342,2]
[403917638,1769675441594,-500.0,0.00015342,2]
[403917640,1769675441603,-2000.0,0.00015342,2]
[403917643,1769675441613,-849.71421088,0.00015342,2]
[403917645,1769675441622,-168.0,0.00015371,2]
[403917647,1769675441631,-146907.20476208,0.000154,2]
[403917649,1769675441641,-105480.46570518,0.000154,2]
[403917651,1769675441650,-225345.32869143,0.000154,2]
[403917653,1769675441659,-2500.0,0.00015464,2]
[403917655,1769675441668,-2500.0,0.00015464,2]
[403917657,1769675441677,-168.0,0.00015532,2]
[403917659,1769675441686,-168.0,0.00015546,2]
[403917661,1769675441696,-10000.0,0.00015559,2]
[403917663,1769675441704,-5000.0,0.0001564,2]
[403917665,1769675441714,-168.0,0.00015684,2]
[403917667,1769675441723,-534.1464331,0.00015689,2]
[403917669,1769675441732,-153.0,0.00015753,2]
[403917671,1769675441740,-168.0,0.00015801,2]
[403917672,1769675441749,-160.0,0.00015848,2]
[403917674,1769675441759,-160.0,0.00015848,2]
[403917676,1769675441768,-1041.66666667,0.00015848,2]
[403917679,1769675441778,-168.0,0.00015856,2]
[403917681,1769675441787,-2365.78800948,0.0001589,2]
[403917683,1769675441796,-823.0,0.00016,2]
[403917685,1769675441805,-2591.91529561,0.00016012,2]
[403917687,1769675441814,-1500.0,0.00016012,2]
[403917689,1769675441824,-168.0,0.00016049,2]
[403917691,1769675441836,-168.0,0.00016232,2]
[403917693,1769675441846,-168.0,0.00016346,2]
[403917694,1769675441855,-1000.0,0.00016416,2]
[403917696,1769675441864,-200.0,0.00016438,2]
[403917698,1769675441875,-300.44675246,0.00016438,2]
[403917700,1769675441884,-295.07967713,0.00016438,2]
[403917703,1769675441893,-168.0,0.00016511,2]
[403917704,1769675441905,-168.0,0.00016598,2]
[403917706,1769675441917,-168.0,0.00016716,2]
[403917708,1769675441927,-168.0,0.00016728,2]
[403917711,1769675441936,-168.0,0.00016857,2]
[403917713,1769675441945,-250.0,0.00016937,2]
[403917715,1769675441954,-249.0,0.00016986,3]